[Event "Late-Titled-Tuesday-Blitz-November-28-2023"]
[Site "Chess.com"]
[Date "2023.11.28"]
[Round "7"]
[White "MathiasWomacka"]
[Black "JaackCamel"]
[Result "1/2-1/2"]
[WhiteElo "2512"]
[BlackElo "2060"]
[TimeControl "180+1"]
[EndTime "15:15:37 PST"]
[Termination "Game drawn by repetition"]

1. e4 {[%clk 0:03:00.9]} 1... e6 {[%clk 0:02:59.6]} 2. d4 {[%clk 0:02:59.8]}
2... d5 {[%clk 0:02:59.6]} 3. Nd2 {[%clk 0:03:00.4]} 3... c5 {[%clk 0:02:59.1]}
4. exd5 {[%clk 0:02:59]} 4... Qxd5 {[%clk 0:02:58.6]} 5. Ngf3 {[%clk 0:02:59.4]}
5... cxd4 {[%clk 0:02:57.8]} 6. Bc4 {[%clk 0:02:59.8]} 6... Qd6 {[%clk
0:02:57.3]} 7. O-O {[%clk 0:03:00.4]} 7... Nf6 {[%clk 0:02:56.7]} 8. Nb3 {[%clk
0:03:00.8]} 8... Nc6 {[%clk 0:02:56.1]} 9. Nbxd4 {[%clk 0:03:00.4]} 9... Nxd4
{[%clk 0:02:55.9]} 10. Nxd4 {[%clk 0:03:00.4]} 10... a6 {[%clk 0:02:55.8]} 11.
b3 {[%clk 0:02:52.2]} 11... Qc7 {[%clk 0:02:54.8]} 12. Bb2 {[%clk 0:02:50.6]}
12... Bd6 {[%clk 0:02:54.2]} 13. Nf3 {[%clk 0:02:48.8]} 13... O-O {[%clk
0:02:53.2]} 14. Qe2 {[%clk 0:02:25.2]} 14... b5 {[%clk 0:02:46.3]} 15. Bd3
{[%clk 0:02:24.7]} 15... Bb7 {[%clk 0:02:38.5]} 16. Bxf6 {[%clk 0:02:23.2]}
16... gxf6 {[%clk 0:02:37.8]} 17. Be4 {[%clk 0:02:21.8]} 17... f5 {[%clk
0:02:29.1]} 18. Bxb7 {[%clk 0:02:20.7]} 18... Qxb7 {[%clk 0:02:29]} 19. c4
{[%clk 0:02:16.8]} 19... Qe4 {[%clk 0:02:02.9]} 20. Rfe1 {[%clk 0:01:59.5]}
20... Qxe2 {[%clk 0:02:00.6]} 21. Rxe2 {[%clk 0:02:00.4]} 21... bxc4 {[%clk
0:02:00.7]} 22. bxc4 {[%clk 0:02:01]} 22... Rfc8 {[%clk 0:01:59.8]} 23. Rc1
{[%clk 0:02:00]} 23... Rc5 {[%clk 0:01:52]} 24. g3 {[%clk 0:01:45.9]} 24... Rac8
{[%clk 0:01:50]} 25. Rec2 {[%clk 0:01:45.5]} 25... a5 {[%clk 0:01:23.9]} 26. Nd4
{[%clk 0:01:40]} 26... a4 {[%clk 0:01:20]} 27. Kf1 {[%clk 0:01:10.2]} 27... Be5
{[%clk 0:01:13.2]} 28. Nf3 {[%clk 0:01:07.3]} 28... Bf6 {[%clk 0:01:08.9]} 29.
Ke2 {[%clk 0:01:05.7]} 29... Kg7 {[%clk 0:01:07.6]} 30. Ne1 {[%clk 0:01:04.3]}
30... Re5+ {[%clk 0:01:02.7]} 31. Kf3 {[%clk 0:00:56.9]} 31... Rec5 {[%clk
0:00:51.1]} 32. Nd3 {[%clk 0:00:56.2]} 32... R5c6 {[%clk 0:00:46.9]} 33. c5
{[%clk 0:00:56.3]} 33... Bd4 {[%clk 0:00:46.4]} 34. Rc4 {[%clk 0:00:54.8]} 34...
e5 {[%clk 0:00:45.4]} 35. Ke2 {[%clk 0:00:54.1]} 35... a3 {[%clk 0:00:41.6]} 36.
f4 {[%clk 0:00:45.6]} 36... e4 {[%clk 0:00:31]} 37. Rxd4 {[%clk 0:00:43.3]}
37... exd3+ {[%clk 0:00:30.7]} 38. Rxd3 {[%clk 0:00:42.6]} 38... Rxc5 {[%clk
0:00:31]} 39. Rxc5 {[%clk 0:00:40.1]} 39... Rxc5 {[%clk 0:00:30.9]} 40. Rxa3
{[%clk 0:00:40.2]} 40... Rc2+ {[%clk 0:00:31]} 41. Kf3 {[%clk 0:00:26.1]} 41...
Rxh2 {[%clk 0:00:30.9]} 42. Ra5 {[%clk 0:00:26.4]} 42... Kg6 {[%clk 0:00:29.7]}
43. Ra6+ {[%clk 0:00:26]} 43... f6 {[%clk 0:00:29.7]} 44. Ra8 {[%clk 0:00:24.4]}
44... Rh1 {[%clk 0:00:23.5]} 45. a4 {[%clk 0:00:23.8]} 45... Ra1 {[%clk
0:00:19.7]} 46. a5 {[%clk 0:00:23.6]} 46... Ra3+ {[%clk 0:00:18.4]} 47. Kg2
{[%clk 0:00:23.4]} 47... h6 {[%clk 0:00:15.2]} 48. Kh3 {[%clk 0:00:22.7]} 48...
Ra1 {[%clk 0:00:15.2]} 49. a6 {[%clk 0:00:22.1]} 49... Kh5 {[%clk 0:00:13.1]}
50. Kg2 {[%clk 0:00:15.5]} 50... Ra3 {[%clk 0:00:12.8]} 51. Kf2 {[%clk
0:00:14.8]} 51... Kg6 {[%clk 0:00:09.2]} 52. Kg2 {[%clk 0:00:13.2]} 52... Kh5
{[%clk 0:00:09.4]} 53. Kh3 {[%clk 0:00:10.1]} 53... Ra1 {[%clk 0:00:09.6]} 54.
Kh2 {[%clk 0:00:08.8]} 54... Ra2+ {[%clk 0:00:09.5]} 55. Kh3 {[%clk 0:00:09]}
55... Ra1 {[%clk 0:00:10]} 1/2-1/2

[Event "Late-Titled-Tuesday-Blitz-November-28-2023"]
[Site "Chess.com"]
[Date "2023.11.28"]
[Round "7"]
[White "SergioMoralesG"]
[Black "FontVella8"]
[Result "1/2-1/2"]
[WhiteElo "2379"]
[BlackElo "2580"]
[TimeControl "180+1"]
[EndTime "15:15:41 PST"]
[Termination "Game drawn - insufficient material"]

1. d4 {[%clk 0:02:53.5]} 1... Nf6 {[%clk 0:02:59.7]} 2. c4 {[%clk 0:02:54]} 2...
e6 {[%clk 0:03:00.1]} 3. Nf3 {[%clk 0:02:53.4]} 3... d5 {[%clk 0:02:59.8]} 4.
Nc3 {[%clk 0:02:53.8]} 4... c5 {[%clk 0:02:59]} 5. e3 {[%clk 0:02:52.9]} 5...
dxc4 {[%clk 0:02:54.3]} 6. Bxc4 {[%clk 0:02:50.3]} 6... a6 {[%clk 0:02:54.4]} 7.
O-O {[%clk 0:02:47.5]} 7... Nc6 {[%clk 0:02:52.2]} 8. Qe2 {[%clk 0:02:43.3]}
8... b5 {[%clk 0:02:34.3]} 9. Bb3 {[%clk 0:02:42.5]} 9... Qc7 {[%clk 0:02:17.8]}
10. d5 {[%clk 0:02:36.9]} 10... Na5 {[%clk 0:02:13.9]} 11. dxe6 {[%clk
0:02:32.9]} 11... Nxb3 {[%clk 0:02:12.7]} 12. exf7+ {[%clk 0:02:30.9]} 12...
Qxf7 {[%clk 0:02:12.2]} 13. axb3 {[%clk 0:02:31.8]} 13... Bb7 {[%clk 0:02:09.6]}
14. e4 {[%clk 0:02:05.6]} 14... Qxb3 {[%clk 0:01:48.4]} 15. Bg5 {[%clk
0:02:04.3]} 15... Be7 {[%clk 0:01:35.4]} 16. e5 {[%clk 0:02:00.6]} 16... Nd5
{[%clk 0:01:26.7]} 17. Nxd5 {[%clk 0:01:54.3]} 17... Qxd5 {[%clk 0:01:21.3]} 18.
Bxe7 {[%clk 0:01:53.6]} 18... Kxe7 {[%clk 0:01:17.1]} 19. Rad1 {[%clk
0:01:47.7]} 19... Qe4 {[%clk 0:00:16.7]} 20. Qd2 {[%clk 0:01:41.3]} 20... Rhd8
{[%clk 0:00:17.1]} 21. Qg5+ {[%clk 0:01:38.4]} 21... Ke8 {[%clk 0:00:17.6]} 22.
Qxg7 {[%clk 0:01:34.1]} 22... Bd5 {[%clk 0:00:14.7]} 23. e6 {[%clk 0:01:17.7]}
23... Qg6 {[%clk 0:00:13.4]} 24. Qe5 {[%clk 0:01:05.9]} 24... Bxf3 {[%clk
0:00:12.8]} 25. Rxd8+ {[%clk 0:00:35.8]} 25... Rxd8 {[%clk 0:00:13.7]} 26. g3
{[%clk 0:00:35.8]} 26... Bd5 {[%clk 0:00:06.2]} 27. Re1 {[%clk 0:00:18.8]} 27...
Bxe6 {[%clk 0:00:02.8]} 28. Qxe6+ {[%clk 0:00:17]} 28... Qxe6 {[%clk 0:00:03.7]}
29. Rxe6+ {[%clk 0:00:17.2]} 29... Kf7 {[%clk 0:00:04.3]} 30. Rxa6 {[%clk
0:00:16.3]} 30... Rd2 {[%clk 0:00:03.7]} 31. b3 {[%clk 0:00:05.2]} 31... Rd3
{[%clk 0:00:02.5]} 32. Rc6 {[%clk 0:00:05.4]} 32... Rxb3 {[%clk 0:00:02.3]} 33.
Rxc5 {[%clk 0:00:05.4]} 33... Rb1+ {[%clk 0:00:03.2]} 34. Kg2 {[%clk 0:00:05.3]}
34... b4 {[%clk 0:00:04.1]} 35. Rc7+ {[%clk 0:00:05.6]} 35... Kg6 {[%clk
0:00:04.2]} 36. h4 {[%clk 0:00:06.5]} 36... b3 {[%clk 0:00:04.5]} 37. Rb7 {[%clk
0:00:07.3]} 37... b2 {[%clk 0:00:04.2]} 38. Kf3 {[%clk 0:00:08]} 38... h6 {[%clk
0:00:04]} 39. Rb6+ {[%clk 0:00:08.1]} 39... Kf5 {[%clk 0:00:03.6]} 40. Rb5+
{[%clk 0:00:07.9]} 40... Ke6 {[%clk 0:00:04]} 41. h5 {[%clk 0:00:08.8]} 41...
Kd6 {[%clk 0:00:03.9]} 42. g4 {[%clk 0:00:08.8]} 42... Kc6 {[%clk 0:00:04.4]}
43. Rb3 {[%clk 0:00:09.1]} 43... Kc5 {[%clk 0:00:04.7]} 44. Kf4 {[%clk
0:00:09.3]} 44... Kc4 {[%clk 0:00:04.4]} 45. Rb8 {[%clk 0:00:09.3]} 45... Kc3
{[%clk 0:00:05]} 46. g5 {[%clk 0:00:08.5]} 46... hxg5+ {[%clk 0:00:05.3]} 47.
Kf5 {[%clk 0:00:09]} 47... Rf1 {[%clk 0:00:04.5]} 48. Rxb2 {[%clk 0:00:08.2]}
48... Kxb2 {[%clk 0:00:04.1]} 49. h6 {[%clk 0:00:08.2]} 49... Rxf2+ {[%clk
0:00:02.8]} 50. Kxg5 {[%clk 0:00:08.6]} 50... Kc3 {[%clk 0:00:02.7]} 51. h7
{[%clk 0:00:08]} 51... Rg2+ {[%clk 0:00:02.9]} 52. Kf6 {[%clk 0:00:08.1]} 52...
Rh2 {[%clk 0:00:03.2]} 53. Kg7 {[%clk 0:00:08.4]} 53... Kd4 {[%clk 0:00:04.1]}
54. h8=Q {[%clk 0:00:08.6]} 54... Rxh8 {[%clk 0:00:04.6]} 55. Kxh8 {[%clk
0:00:09.5]} 1/2-1/2

[Event "Late-Titled-Tuesday-Blitz-November-28-2023"]
[Site "Chess.com"]
[Date "2023.11.28"]
[Round "7"]
[White "dianamirza"]
[Black "TheMagician"]
[Result "0-1"]
[WhiteElo "2030"]
[BlackElo "2299"]
[TimeControl "180+1"]
[EndTime "15:15:44 PST"]
[Termination "TheMagician won by resignation"]

1. e4 {[%clk 0:03:00.9]} 1... c5 {[%clk 0:02:57.8]} 2. Nf3 {[%clk 0:02:50.9]}
2... d6 {[%clk 0:02:57.9]} 3. d4 {[%clk 0:02:51.7]} 3... cxd4 {[%clk 0:02:57.2]}
4. Nxd4 {[%clk 0:02:52.6]} 4... Nf6 {[%clk 0:02:56.7]} 5. Be3 {[%clk 0:02:52.5]}
5... a6 {[%clk 0:02:53.6]} 6. Nc3 {[%clk 0:02:52.3]} 6... e5 {[%clk 0:02:53.9]}
7. Nb3 {[%clk 0:02:50.7]} 7... Be6 {[%clk 0:02:54.1]} 8. f3 {[%clk 0:02:50.6]}
8... Nbd7 {[%clk 0:02:45.9]} 9. Qd2 {[%clk 0:02:37.6]} 9... b5 {[%clk
0:02:39.1]} 10. Nd5 {[%clk 0:02:36.8]} 10... Bxd5 {[%clk 0:02:32.7]} 11. exd5
{[%clk 0:02:36.3]} 11... Nb6 {[%clk 0:02:32.6]} 12. a4 {[%clk 0:02:22.7]} 12...
Nbxd5 {[%clk 0:02:04.1]} 13. axb5 {[%clk 0:02:18.3]} 13... Nxe3 {[%clk
0:01:51.1]} 14. Qxe3 {[%clk 0:02:14.5]} 14... a5 {[%clk 0:01:50.9]} 15. Bd3
{[%clk 0:02:12.4]} 15... Be7 {[%clk 0:01:45.2]} 16. b6 {[%clk 0:02:07.4]} 16...
Nd5 {[%clk 0:01:40.9]} 17. Bb5+ {[%clk 0:01:57.9]} 17... Kf8 {[%clk 0:01:40.5]}
18. Qe4 {[%clk 0:01:53.1]} 18... Nxb6 {[%clk 0:01:32.5]} 19. O-O {[%clk
0:01:42.7]} 19... a4 {[%clk 0:01:30.7]} 20. Bxa4 {[%clk 0:01:34.5]} 20... d5
{[%clk 0:01:26.7]} 21. Qg4 {[%clk 0:01:21.2]} 21... h5 {[%clk 0:01:24]} 22. Qf5
{[%clk 0:01:00.6]} 22... Nxa4 {[%clk 0:01:17.2]} 23. f4 {[%clk 0:00:55.6]} 23...
e4 {[%clk 0:01:11.1]} 24. Nd4 {[%clk 0:00:48.2]} 24... Bc5 {[%clk 0:01:00.3]}
25. c3 {[%clk 0:00:39.9]} 25... Rh6 {[%clk 0:00:50.8]} 26. Kh1 {[%clk 0:00:38]}
26... Bxd4 {[%clk 0:00:48.3]} 27. cxd4 {[%clk 0:00:38.9]} 27... h4 {[%clk
0:00:47.2]} 28. Rfc1 {[%clk 0:00:28.9]} 28... h3 {[%clk 0:00:44.3]} 29. gxh3
{[%clk 0:00:28.2]} 29... Rha6 {[%clk 0:00:35.2]} 30. b3 {[%clk 0:00:21.4]} 30...
Nb6 {[%clk 0:00:30.7]} 31. Rxa6 {[%clk 0:00:18.7]} 31... Rxa6 {[%clk 0:00:30]}
32. Qh7 {[%clk 0:00:17.5]} 32... Ke7 {[%clk 0:00:14]} 33. Qxg7 {[%clk
0:00:17.3]} 33... Nd7 {[%clk 0:00:13.8]} 34. Qg5+ {[%clk 0:00:17]} 34... Rf6
{[%clk 0:00:12.8]} 35. Qxd5 {[%clk 0:00:16.7]} 35... e3 {[%clk 0:00:10.5]} 36.
Qe4+ {[%clk 0:00:16.7]} 36... Re6 {[%clk 0:00:10.8]} 37. Qf5 {[%clk 0:00:12.9]}
37... e2 {[%clk 0:00:10.4]} 38. Re1 {[%clk 0:00:13.3]} 38... Qh8 {[%clk
0:00:05.5]} 39. d5 {[%clk 0:00:12.2]} 39... Qc3 {[%clk 0:00:04.6]} 40. Qg5+
{[%clk 0:00:10.3]} 40... Ke8 {[%clk 0:00:03.1]} 41. Qg8+ {[%clk 0:00:10.1]}
41... Nf8 {[%clk 0:00:03.2]} 42. dxe6 {[%clk 0:00:08.1]} 42... Qxe1+ {[%clk
0:00:02.9]} 43. Qg1 {[%clk 0:00:07.1]} 43... Qxg1+ {[%clk 0:00:02.4]} 44. Kxg1
{[%clk 0:00:08]} 44... e1=Q+ {[%clk 0:00:03.3]} 45. Kg2 {[%clk 0:00:08.5]} 45...
Qxe6 {[%clk 0:00:03.6]} 46. Kg3 {[%clk 0:00:09.4]} 46... Qxb3+ {[%clk
0:00:04.1]} 47. Kg4 {[%clk 0:00:09.9]} 47... Qe6+ {[%clk 0:00:04.2]} 48. f5
{[%clk 0:00:09.9]} 48... Qf6 {[%clk 0:00:04.8]} 49. Kf4 {[%clk 0:00:09.5]} 49...
Ne6+ {[%clk 0:00:05.7]} 50. Ke4 {[%clk 0:00:09]} 50... Ng7 {[%clk 0:00:06]} 51.
Ke3 {[%clk 0:00:07.4]} 51... Qxf5 {[%clk 0:00:06.9]} 52. Ke2 {[%clk 0:00:07.7]}
52... Ne6 {[%clk 0:00:07.8]} 0-1

[Event "Late-Titled-Tuesday-Blitz-November-28-2023"]
[Site "Chess.com"]
[Date "2023.11.28"]
[Round "7"]
[White "falzehope0"]
[Black "e4evr"]
[Result "0-1"]
[WhiteElo "2349"]
[BlackElo "2143"]
[TimeControl "180+1"]
[EndTime "15:15:46 PST"]
[Termination "e4evr won by resignation"]

1. d4 {[%clk 0:02:55.4]} 1... Nf6 {[%clk 0:02:59.6]} 2. e3 {[%clk 0:02:55.4]}
2... e6 {[%clk 0:02:59]} 3. Bd3 {[%clk 0:02:55.7]} 3... b6 {[%clk 0:02:58]} 4.
f4 {[%clk 0:02:55.9]} 4... Bb7 {[%clk 0:02:58.3]} 5. Nf3 {[%clk 0:02:56.3]} 5...
Be7 {[%clk 0:02:55.8]} 6. O-O {[%clk 0:02:56.4]} 6... Ne4 {[%clk 0:02:55.3]} 7.
Nbd2 {[%clk 0:02:55.2]} 7... f5 {[%clk 0:02:54.9]} 8. Ne5 {[%clk 0:02:50.5]}
8... O-O {[%clk 0:02:53.1]} 9. Nxe4 {[%clk 0:02:46.5]} 9... fxe4 {[%clk
0:02:53.1]} 10. Bc4 {[%clk 0:02:46]} 10... d5 {[%clk 0:02:50.2]} 11. Bb3 {[%clk
0:02:45.7]} 11... Nd7 {[%clk 0:02:50.5]} 12. Qg4 {[%clk 0:02:41.9]} 12... Rf6
{[%clk 0:02:46.4]} 13. c4 {[%clk 0:02:38.5]} 13... Nxe5 {[%clk 0:02:43.6]} 14.
dxe5 {[%clk 0:02:37.8]} 14... Rg6 {[%clk 0:02:43.3]} 15. Qe2 {[%clk 0:02:35.4]}
15... Ba6 {[%clk 0:02:42.9]} 16. Qc2 {[%clk 0:02:31.5]} 16... c6 {[%clk
0:02:40.7]} 17. Rd1 {[%clk 0:02:28.1]} 17... Bc5 {[%clk 0:02:34]} 18. a3 {[%clk
0:02:19.3]} 18... Qh4 {[%clk 0:02:33.3]} 19. Ba2 {[%clk 0:02:11.5]} 19... Qxf4
{[%clk 0:02:31]} 20. cxd5 {[%clk 0:01:55.1]} 20... Bxe3+ {[%clk 0:02:30.8]} 21.
Kh1 {[%clk 0:01:49.8]} 21... cxd5 {[%clk 0:02:26.8]} 22. Bxe3 {[%clk 0:01:10.1]}
22... Qxe3 {[%clk 0:02:26.2]} 23. Rxd5 {[%clk 0:01:05.2]} 23... Bd3 {[%clk
0:02:13.4]} 24. Qc6 {[%clk 0:00:45.7]} 24... Rf8 {[%clk 0:02:10.4]} 25. Qd6
{[%clk 0:00:20.7]} 25... Bf1 {[%clk 0:02:02.4]} 26. Rd2 {[%clk 0:00:14]} 26...
Qf4 {[%clk 0:01:25.1]} 27. Bxe6+ {[%clk 0:00:12.7]} 27... Kh8 {[%clk 0:01:25.6]}
28. Rc2 {[%clk 0:00:09.1]} 28... Bc4 {[%clk 0:00:54.9]} 29. Bxc4 {[%clk
0:00:07.7]} 29... Rxd6 {[%clk 0:00:53.5]} 30. exd6 {[%clk 0:00:08.6]} 30... Qxd6
{[%clk 0:00:52.6]} 31. Rac1 {[%clk 0:00:07]} 31... e3 {[%clk 0:00:51.9]} 32. Be2
{[%clk 0:00:06.9]} 32... g6 {[%clk 0:00:47.7]} 33. Bf3 {[%clk 0:00:07.4]} 33...
Qd3 {[%clk 0:00:46.9]} 34. Re2 {[%clk 0:00:07.1]} 34... Re8 {[%clk 0:00:46]} 35.
Rce1 {[%clk 0:00:07.9]} 35... Qb3 {[%clk 0:00:45.1]} 36. h3 {[%clk 0:00:08.8]}
36... b5 {[%clk 0:00:43.8]} 37. Kg1 {[%clk 0:00:09]} 37... a5 {[%clk 0:00:44]}
38. Kh1 {[%clk 0:00:09.2]} 38... b4 {[%clk 0:00:43.8]} 39. axb4 {[%clk
0:00:10.1]} 39... Qxb4 {[%clk 0:00:44.1]} 40. Kg1 {[%clk 0:00:09.9]} 40... a4
{[%clk 0:00:43.8]} 41. Kh1 {[%clk 0:00:10.2]} 41... Re5 {[%clk 0:00:41.8]} 42.
Rxe3 {[%clk 0:00:09.7]} 42... Qxe1+ {[%clk 0:00:41.7]} 43. Rxe1 {[%clk
0:00:09.4]} 43... Rxe1+ {[%clk 0:00:42.6]} 44. Kh2 {[%clk 0:00:09.9]} 44... Rb1
{[%clk 0:00:42.8]} 45. Bc6 {[%clk 0:00:09.7]} 45... Rxb2 {[%clk 0:00:42.4]} 46.
Bxa4 {[%clk 0:00:10]} 46... Kg7 {[%clk 0:00:43]} 47. Bc6 {[%clk 0:00:10.3]}
47... Kf6 {[%clk 0:00:43.5]} 48. Bf3 {[%clk 0:00:10.7]} 48... Ke5 {[%clk
0:00:44]} 49. Kg3 {[%clk 0:00:11.2]} 49... h6 {[%clk 0:00:43.5]} 50. Bc6 {[%clk
0:00:10.4]} 50... Rb3+ {[%clk 0:00:43.2]} 51. Bf3 {[%clk 0:00:11.3]} 51... Rc3
{[%clk 0:00:43.4]} 52. h4 {[%clk 0:00:11.4]} 52... Kf5 {[%clk 0:00:42]} 53. Kh3
{[%clk 0:00:10.5]} 53... Kf4 {[%clk 0:00:42]} 54. Kh2 {[%clk 0:00:10.4]} 54...
Rxf3 {[%clk 0:00:41.5]} 55. gxf3 {[%clk 0:00:11.3]} 55... Kxf3 {[%clk
0:00:42.4]} 56. Kh3 {[%clk 0:00:11.8]} 56... h5 {[%clk 0:00:41.7]} 57. Kh2
{[%clk 0:00:08.8]} 57... Kg4 {[%clk 0:00:42.6]} 58. Kg2 {[%clk 0:00:07.5]} 58...
Kxh4 {[%clk 0:00:43.5]} 59. Kh2 {[%clk 0:00:08.1]} 59... Kg4 {[%clk 0:00:43.9]}
60. Kg2 {[%clk 0:00:08.7]} 60... g5 {[%clk 0:00:44.8]} 61. Kh2 {[%clk
0:00:09.1]} 61... h4 {[%clk 0:00:45.7]} 62. Kg2 {[%clk 0:00:09.5]} 62... h3+
{[%clk 0:00:46.1]} 63. Kf2 {[%clk 0:00:08.7]} 63... Kh4 {[%clk 0:00:47]} 64. Kf3
{[%clk 0:00:07.9]} 64... g4+ {[%clk 0:00:46.5]} 65. Kf2 {[%clk 0:00:08.4]} 65...
g3+ {[%clk 0:00:46.7]} 66. Kf3 {[%clk 0:00:07.9]} 66... h2 {[%clk 0:00:46.1]}
67. Kg2 {[%clk 0:00:08.3]} 67... Kg4 {[%clk 0:00:46.5]} 68. Kh1 {[%clk
0:00:08.8]} 68... Kf4 {[%clk 0:00:46.5]} 69. Kg2 {[%clk 0:00:09.3]} 69... h1=Q+
{[%clk 0:00:46.4]} 70. Kxh1 {[%clk 0:00:10.2]} 70... Kf3 {[%clk 0:00:46.8]} 71.
Kg1 {[%clk 0:00:09.2]} 71... g2 {[%clk 0:00:47.7]} 72. Kh2 {[%clk 0:00:08.1]}
72... Kf2 {[%clk 0:00:48.6]} 73. Kh3 {[%clk 0:00:07.7]} 73... g1=Q {[%clk
0:00:48.1]} 74. Kh4 {[%clk 0:00:08.6]} 74... Qg6 {[%clk 0:00:47.8]} 0-1

[Event "Late-Titled-Tuesday-Blitz-November-28-2023"]
[Site "Chess.com"]
[Date "2023.11.28"]
[Round "7"]
[White "DreamsAreFake"]
[Black "rasmussvane"]
[Result "1-0"]
[WhiteElo "2692"]
[BlackElo "2963"]
[TimeControl "180+1"]
[EndTime "15:15:47 PST"]
[Termination "DreamsAreFake won by checkmate"]

1. Nf3 {[%clk 0:03:00.9]} 1... d5 {[%clk 0:02:58]} 2. g3 {[%clk 0:03:01.4]} 2...
Nf6 {[%clk 0:02:41.4]} 3. Bg2 {[%clk 0:03:01.8]} 3... e6 {[%clk 0:02:41.9]} 4.
O-O {[%clk 0:03:01.1]} 4... Be7 {[%clk 0:02:42.2]} 5. b3 {[%clk 0:02:56.5]} 5...
O-O {[%clk 0:02:42.2]} 6. Bb2 {[%clk 0:02:57.1]} 6... c5 {[%clk 0:02:38.3]} 7.
e3 {[%clk 0:02:57.4]} 7... Nc6 {[%clk 0:02:33]} 8. Ne5 {[%clk 0:02:57.6]} 8...
Bd7 {[%clk 0:02:26.8]} 9. Nxd7 {[%clk 0:02:35.5]} 9... Qxd7 {[%clk 0:02:27.7]}
10. d3 {[%clk 0:02:27]} 10... e5 {[%clk 0:02:20.5]} 11. c4 {[%clk 0:02:26.7]}
11... d4 {[%clk 0:02:19.3]} 12. exd4 {[%clk 0:02:25.1]} 12... exd4 {[%clk
0:02:07.5]} 13. Nd2 {[%clk 0:02:24.7]} 13... Rae8 {[%clk 0:01:41.7]} 14. Re1
{[%clk 0:02:19.7]} 14... Ng4 {[%clk 0:01:31.7]} 15. h3 {[%clk 0:02:10.9]} 15...
Nge5 {[%clk 0:01:30.2]} 16. Nf3 {[%clk 0:02:07.7]} 16... Ng6 {[%clk 0:01:28.3]}
17. a3 {[%clk 0:02:06.3]} 17... Bd6 {[%clk 0:01:25.3]} 18. Qd2 {[%clk
0:02:03.8]} 18... h6 {[%clk 0:01:23.3]} 19. Rxe8 {[%clk 0:01:56.2]} 19... Rxe8
{[%clk 0:01:24.2]} 20. Re1 {[%clk 0:01:56.5]} 20... a5 {[%clk 0:01:20.2]} 21.
Bc1 {[%clk 0:01:51.4]} 21... b6 {[%clk 0:01:10.7]} 22. Qd1 {[%clk 0:01:49.6]}
22... Kf8 {[%clk 0:01:05.8]} 23. Bd2 {[%clk 0:01:48.6]} 23... Rxe1+ {[%clk
0:01:05.2]} 24. Nxe1 {[%clk 0:01:48.4]} 24... Nd8 {[%clk 0:00:58.1]} 25. Nc2
{[%clk 0:01:43.2]} 25... Ne6 {[%clk 0:00:57.4]} 26. Qf3 {[%clk 0:01:36.8]} 26...
Ne5 {[%clk 0:00:50.3]} 27. Qa8+ {[%clk 0:01:36]} 27... Qd8 {[%clk 0:00:50.7]}
28. Qe4 {[%clk 0:01:19.2]} 28... Ng5 {[%clk 0:00:43.4]} 29. Qe2 {[%clk
0:01:19.2]} 29... Ne6 {[%clk 0:00:37.7]} 30. f4 {[%clk 0:01:18.9]} 30... Nd7
{[%clk 0:00:37.3]} 31. Qe4 {[%clk 0:01:14.8]} 31... Nf6 {[%clk 0:00:37]} 32. Qc6
{[%clk 0:01:13]} 32... Qc7 {[%clk 0:00:36.7]} 33. Qf3 {[%clk 0:00:57.6]} 33...
Ke7 {[%clk 0:00:32.3]} 34. Be1 {[%clk 0:00:54.5]} 34... g5 {[%clk 0:00:31.6]}
35. fxg5 {[%clk 0:00:51.6]} 35... hxg5 {[%clk 0:00:30.9]} 36. b4 {[%clk
0:00:50]} 36... axb4 {[%clk 0:00:26.8]} 37. axb4 {[%clk 0:00:50.9]} 37... Qa7
{[%clk 0:00:23.3]} 38. bxc5 {[%clk 0:00:48.4]} 38... bxc5 {[%clk 0:00:23.3]} 39.
Bf2 {[%clk 0:00:24]} 39... Qa2 {[%clk 0:00:21.5]} 40. Ne1 {[%clk 0:00:24.3]}
40... Qa7 {[%clk 0:00:18.9]} 41. Qf5 {[%clk 0:00:18.7]} 41... Qc7 {[%clk
0:00:13.9]} 42. Kh2 {[%clk 0:00:16.8]} 42... Ne8 {[%clk 0:00:13.3]} 43. Nf3
{[%clk 0:00:16]} 43... N8g7 {[%clk 0:00:13.6]} 44. Qh7 {[%clk 0:00:15.8]} 44...
Ne8 {[%clk 0:00:11]} 45. Qh6 {[%clk 0:00:12.8]} 45... f6 {[%clk 0:00:09]} 46.
Qh7+ {[%clk 0:00:12.4]} 46... Kd8 {[%clk 0:00:09.4]} 47. Qg8 {[%clk 0:00:11.8]}
47... Qe7 {[%clk 0:00:09.1]} 48. Nd2 {[%clk 0:00:11.7]} 48... Kc7 {[%clk
0:00:07.7]} 49. Ne4 {[%clk 0:00:11.4]} 49... Be5 {[%clk 0:00:07.4]} 50. Be1
{[%clk 0:00:11.2]} 50... Nd6 {[%clk 0:00:07.1]} 51. Ba5+ {[%clk 0:00:10.9]}
51... Kd7 {[%clk 0:00:06.1]} 52. Qa8 {[%clk 0:00:08.8]} 52... Nxe4 {[%clk
0:00:06.3]} 53. Bxe4 {[%clk 0:00:08.9]} 53... Qd6 {[%clk 0:00:06.3]} 54. Qb7+
{[%clk 0:00:08.8]} 54... Ke8 {[%clk 0:00:06.8]} 55. Bg6+ {[%clk 0:00:08.8]}
55... Kf8 {[%clk 0:00:05.3]} 56. Qf7# {[%clk 0:00:09.7]} 1-0